[Event "Early-Titled-Tuesday-Blitz-March-12-2024"]
[Site "Chess.com"]
[Date "2024.03.12"]
[Round "5"]
[White "Al_Shima"]
[Black "PetrolulSah"]
[Result "1-0"]
[WhiteElo "2440"]
[BlackElo "2225"]
[TimeControl "180+1"]
[EndTime "8:54:38 PDT"]
[Termination "Al_Shima won by resignation"]

1. e4 {[%clk 0:03:00.9]} 1... e5 {[%clk 0:02:59.6]} 2. Bc4 {[%clk 0:03:00.7]}
2... Nf6 {[%clk 0:02:59.1]} 3. d4 {[%clk 0:03:00.4]} 3... exd4 {[%clk
0:02:46.5]} 4. Nf3 {[%clk 0:03:00.8]} 4... d5 {[%clk 0:02:39.1]} 5. exd5 {[%clk
0:03:00.5]} 5... Nxd5 {[%clk 0:02:39.2]} 6. Qxd4 {[%clk 0:03:00.9]} 6... Be6
{[%clk 0:02:36.3]} 7. O-O {[%clk 0:02:55.9]} 7... Nc6 {[%clk 0:02:35.6]} 8. Qe4
{[%clk 0:02:49.2]} 8... Be7 {[%clk 0:02:33.7]} 9. Rd1 {[%clk 0:02:48.5]} 9...
Nf6 {[%clk 0:02:14.7]} 10. Rxd8+ {[%clk 0:02:42.1]} 10... Rxd8 {[%clk
0:02:14.5]} 11. Qe2 {[%clk 0:02:42.4]} 11... Bxc4 {[%clk 0:02:13.4]} 12. Qe1
{[%clk 0:02:28.3]} 12... O-O {[%clk 0:02:10.9]} 13. Be3 {[%clk 0:02:26]} 13...
Ng4 {[%clk 0:02:02.8]} 14. Nbd2 {[%clk 0:02:22.3]} 14... Be6 {[%clk 0:01:47.9]}
15. h3 {[%clk 0:02:21.9]} 15... Nxe3 {[%clk 0:01:46.8]} 16. Qxe3 {[%clk
0:02:22.8]} 16... Bf6 {[%clk 0:01:45.8]} 17. c3 {[%clk 0:02:20.7]} 17... Rfe8
{[%clk 0:01:43.6]} 18. Ne4 {[%clk 0:02:18.2]} 18... Be7 {[%clk 0:01:39.6]} 19.
Re1 {[%clk 0:02:17.4]} 19... h6 {[%clk 0:01:26.1]} 20. Qf4 {[%clk 0:02:10.6]}
20... Bd5 {[%clk 0:01:10.7]} 21. Qxc7 {[%clk 0:01:59.3]} 21... Bxe4 {[%clk
0:00:47.5]} 22. Rxe4 {[%clk 0:01:56.7]} 22... Rd1+ {[%clk 0:00:47.5]} 23. Re1
{[%clk 0:01:48.4]} 23... Rxe1+ {[%clk 0:00:43.4]} 24. Nxe1 {[%clk 0:01:47.5]}
24... Bd8 {[%clk 0:00:43.7]} 25. Qxb7 {[%clk 0:01:32.4]} 25... Rxe1+ {[%clk
0:00:43.2]} 26. Kh2 {[%clk 0:01:32.5]} 26... Re6 {[%clk 0:00:36.6]} 27. b4
{[%clk 0:01:30.6]} 27... Bf6 {[%clk 0:00:32]} 28. b5 {[%clk 0:01:27.1]} 28...
Be5+ {[%clk 0:00:31]} 29. g3 {[%clk 0:01:26.7]} 29... Ne7 {[%clk 0:00:28.3]} 30.
Qxa7 {[%clk 0:01:22.9]} 30... Bxc3 {[%clk 0:00:27.2]} 31. b6 {[%clk 0:01:22.4]}
31... Nc6 {[%clk 0:00:19.6]} 32. Qa8+ {[%clk 0:01:18.9]} 32... Kh7 {[%clk
0:00:19.5]} 33. b7 {[%clk 0:01:18.9]} 33... Be5 {[%clk 0:00:17]} 34. a4 {[%clk
0:01:15.5]} 34... Bb8 {[%clk 0:00:16.8]} 35. a5 {[%clk 0:01:13.2]} 35... Rf6
{[%clk 0:00:16.9]} 36. Kg2 {[%clk 0:01:11.4]} 36... Ba7 {[%clk 0:00:16.6]} 37.
Qxa7 {[%clk 0:01:07.9]} 37... Nxa7 {[%clk 0:00:12.7]} 38. b8=Q {[%clk
0:01:08.2]} 38... Nc6 {[%clk 0:00:12.7]} 39. Qb1+ {[%clk 0:01:04.3]} 39... g6
{[%clk 0:00:12.2]} 40. a6 {[%clk 0:01:04.6]} 40... Nd4 {[%clk 0:00:11.7]} 41. a7
{[%clk 0:01:02]} 41... Ra6 {[%clk 0:00:11.4]} 42. Qb7 {[%clk 0:01:02.5]} 1-0

[Event "Early-Titled-Tuesday-Blitz-March-12-2024"]
[Site "Chess.com"]
[Date "2024.03.12"]
[Round "5"]
[White "masnyszachistaaa"]
[Black "Zhigalko_Sergei"]
[Result "0-1"]
[WhiteElo "2561"]
[BlackElo "2842"]
[TimeControl "180+1"]
[EndTime "8:54:39 PDT"]
[Termination "Zhigalko_Sergei won on time"]

1. d4 {[%clk 0:03:00.9]} 1... Nf6 {[%clk 0:03:00.2]} 2. c4 {[%clk 0:03:00.8]}
2... e6 {[%clk 0:03:00.6]} 3. Nf3 {[%clk 0:03:00.5]} 3... b6 {[%clk 0:03:00.8]}
4. a3 {[%clk 0:03:00.1]} 4... Ba6 {[%clk 0:03:00.4]} 5. Qc2 {[%clk 0:02:56.9]}
5... Bb7 {[%clk 0:03:00]} 6. Nc3 {[%clk 0:02:56.2]} 6... c5 {[%clk 0:03:00]} 7.
dxc5 {[%clk 0:02:56.1]} 7... bxc5 {[%clk 0:02:58]} 8. Bg5 {[%clk 0:02:55.3]}
8... Be7 {[%clk 0:02:56.3]} 9. e3 {[%clk 0:02:51.7]} 9... d6 {[%clk 0:02:56]}
10. Be2 {[%clk 0:02:49.6]} 10... Nbd7 {[%clk 0:02:51.5]} 11. O-O {[%clk
0:02:48.8]} 11... O-O {[%clk 0:02:50.2]} 12. Rfd1 {[%clk 0:02:48.7]} 12... Qb6
{[%clk 0:02:48.7]} 13. b4 {[%clk 0:02:44.6]} 13... Rfd8 {[%clk 0:02:44.7]} 14.
Rab1 {[%clk 0:02:43]} 14... Rab8 {[%clk 0:02:38.6]} 15. Bh4 {[%clk 0:02:08.5]}
15... h6 {[%clk 0:02:36.2]} 16. Rb2 {[%clk 0:01:40]} 16... Bc6 {[%clk
0:02:29.5]} 17. Rdb1 {[%clk 0:01:36]} 17... Qc7 {[%clk 0:02:19.2]} 18. Rd1
{[%clk 0:01:09.5]} 18... a6 {[%clk 0:01:40.2]} 19. h3 {[%clk 0:00:53.2]} 19...
cxb4 {[%clk 0:01:37.9]} 20. axb4 {[%clk 0:00:53.1]} 20... Bxf3 {[%clk
0:01:38.5]} 21. gxf3 {[%clk 0:00:42.8]} 21... Ne5 {[%clk 0:01:38.9]} 22. Bxf6
{[%clk 0:00:23.1]} 22... Bxf6 {[%clk 0:01:38.1]} 23. Ne4 {[%clk 0:00:23.1]}
23... Be7 {[%clk 0:01:12.8]} 24. f4 {[%clk 0:00:22.8]} 24... Ng6 {[%clk
0:01:13.5]} 25. b5 {[%clk 0:00:18.3]} 25... Nh4 {[%clk 0:01:06.7]} 26. bxa6
{[%clk 0:00:15.4]} 26... Rxb2 {[%clk 0:01:07.6]} 27. Qxb2 {[%clk 0:00:15.9]}
27... Rb8 {[%clk 0:01:05.7]} 28. Qa2 {[%clk 0:00:13.4]} 28... Qc6 {[%clk
0:01:05.9]} 29. Qc2 {[%clk 0:00:10.7]} 29... Qxa6 {[%clk 0:01:01.8]} 30. c5
{[%clk 0:00:09.8]} 30... Qc6 {[%clk 0:01:02.3]} 31. f3 {[%clk 0:00:05.9]} 31...
d5 {[%clk 0:01:01.2]} 32. Nf2 {[%clk 0:00:04.1]} 32... Qxc5 {[%clk 0:00:50.6]}
33. Qxc5 {[%clk 0:00:02.6]} 33... Bxc5 {[%clk 0:00:51.5]} 34. Rd3 {[%clk
0:00:01.6]} 34... Rb2 {[%clk 0:00:49.3]} 0-1

[Event "Early-Titled-Tuesday-Blitz-March-12-2024"]
[Site "Chess.com"]
[Date "2024.03.12"]
[Round "5"]
[White "ExchangeAB"]
[Black "rhwr"]
[Result "0-1"]
[WhiteElo "2509"]
[BlackElo "2291"]
[TimeControl "180+1"]
[EndTime "8:54:41 PDT"]
[Termination "rhwr won by resignation"]

1. d4 {[%clk 0:03:00.9]} 1... Nf6 {[%clk 0:02:58.9]} 2. Nf3 {[%clk 0:03:01.1]}
2... g6 {[%clk 0:02:58.5]} 3. c3 {[%clk 0:03:01]} 3... Bg7 {[%clk 0:02:59.1]} 4.
h3 {[%clk 0:03:01.7]} 4... O-O {[%clk 0:02:59.6]} 5. Bf4 {[%clk 0:03:02.3]} 5...
d6 {[%clk 0:02:58]} 6. e3 {[%clk 0:03:02.6]} 6... Nbd7 {[%clk 0:02:58.5]} 7.
Nbd2 {[%clk 0:03:02.6]} 7... c5 {[%clk 0:02:58.8]} 8. Be2 {[%clk 0:03:02.6]}
8... Qb6 {[%clk 0:02:58.5]} 9. Qb3 {[%clk 0:03:01.2]} 9... Qxb3 {[%clk
0:02:57.4]} 10. axb3 {[%clk 0:03:00.6]} 10... a6 {[%clk 0:02:54.8]} 11. O-O
{[%clk 0:03:00.4]} 11... Re8 {[%clk 0:02:51.7]} 12. Bh2 {[%clk 0:02:59.3]} 12...
e5 {[%clk 0:02:44.9]} 13. dxe5 {[%clk 0:02:57.2]} 13... dxe5 {[%clk 0:02:41.7]}
14. Nc4 {[%clk 0:02:53.4]} 14... e4 {[%clk 0:02:40.7]} 15. Nfd2 {[%clk
0:02:47.1]} 15... Re6 {[%clk 0:02:30.7]} 16. Nd6 {[%clk 0:02:37]} 16... Bf8
{[%clk 0:02:26]} 17. Nxc8 {[%clk 0:02:36.5]} 17... Rxc8 {[%clk 0:02:25.6]} 18.
Nc4 {[%clk 0:02:36.5]} 18... Nb6 {[%clk 0:02:15.6]} 19. Na5 {[%clk 0:02:25.1]}
19... Re7 {[%clk 0:02:07]} 20. Rfd1 {[%clk 0:02:16.3]} 20... Nfd5 {[%clk
0:02:00.1]} 21. c4 {[%clk 0:01:45.1]} 21... Nb4 {[%clk 0:01:51.5]} 22. Bd6
{[%clk 0:01:44.8]} 22... Rd7 {[%clk 0:01:47.8]} 23. Bxf8 {[%clk 0:01:44.8]}
23... Kxf8 {[%clk 0:01:44.7]} 24. Rxd7 {[%clk 0:01:43.3]} 24... Nxd7 {[%clk
0:01:44.2]} 25. Nxb7 {[%clk 0:01:43.8]} 25... Rc7 {[%clk 0:01:37.5]} 26. Na5
{[%clk 0:01:28.4]} 26... Ne5 {[%clk 0:01:30.7]} 27. Rd1 {[%clk 0:01:25.7]} 27...
Ned3 {[%clk 0:01:30]} 28. Bxd3 {[%clk 0:01:25]} 28... exd3 {[%clk 0:01:29.7]}
29. f3 {[%clk 0:01:19.3]} 29... Ke7 {[%clk 0:01:27]} 30. e4 {[%clk 0:01:18.4]}
30... Kd8 {[%clk 0:01:26.5]} 31. Kf2 {[%clk 0:01:17.5]} 31... Kc8 {[%clk
0:01:27]} 32. Ke3 {[%clk 0:01:03.3]} 32... Kb8 {[%clk 0:01:27.1]} 33. Kd2 {[%clk
0:00:40]} 33... Ka7 {[%clk 0:01:27.3]} 34. Kc3 {[%clk 0:00:40.2]} 34... Kb6
{[%clk 0:01:27.8]} 35. Ra1 {[%clk 0:00:40.5]} 35... Rd7 {[%clk 0:01:27.9]} 36.
Kd2 {[%clk 0:00:40.4]} 36... f6 {[%clk 0:01:27.2]} 37. Ra3 {[%clk 0:00:38.9]}
37... g5 {[%clk 0:01:26.9]} 38. Ra1 {[%clk 0:00:38.3]} 38... h5 {[%clk
0:01:27.4]} 39. Ra4 {[%clk 0:00:36.1]} 39... h4 {[%clk 0:01:27.9]} 40. Ra1
{[%clk 0:00:29.5]} 40... Re7 {[%clk 0:01:27.5]} 41. Ra3 {[%clk 0:00:20.4]} 41...
f5 {[%clk 0:01:27.3]} 42. exf5 {[%clk 0:00:16.3]} 42... Re2+ {[%clk 0:01:26.2]}
43. Kd1 {[%clk 0:00:16.8]} 43... Rxg2 {[%clk 0:01:22.9]} 44. f6 {[%clk
0:00:17.3]} 44... Rf2 {[%clk 0:01:20.4]} 45. Ra1 {[%clk 0:00:11.5]} 45... Rxf3
{[%clk 0:01:19.4]} 46. Kd2 {[%clk 0:00:11.8]} 46... Rxf6 {[%clk 0:01:18.3]} 47.
Ke3 {[%clk 0:00:11.4]} 47... Nc2+ {[%clk 0:01:14.2]} 0-1

[Event "Early-Titled-Tuesday-Blitz-March-12-2024"]
[Site "Chess.com"]
[Date "2024.03.12"]
[Round "5"]
[White "Barmen_EV"]
[Black "IsaqueGoncalvesSanto"]
[Result "1-0"]
[WhiteElo "2506"]
[BlackElo "1818"]
[TimeControl "180+1"]
[EndTime "8:54:42 PDT"]
[Termination "Barmen_EV won by checkmate"]

1. e4 {[%clk 0:02:57.1]} 1... e6 {[%clk 0:01:20.6]} 2. d4 {[%clk 0:02:56.4]}
2... d5 {[%clk 0:01:21.1]} 3. Nd2 {[%clk 0:02:55.7]} 3... Nc6 {[%clk 0:01:20.9]}
4. Ngf3 {[%clk 0:02:55.5]} 4... Nf6 {[%clk 0:01:20.5]} 5. e5 {[%clk 0:02:53.3]}
5... Nd7 {[%clk 0:01:20.7]} 6. c3 {[%clk 0:02:52.3]} 6... f6 {[%clk 0:01:20.4]}
7. exf6 {[%clk 0:02:52]} 7... Qxf6 {[%clk 0:01:20.5]} 8. Bd3 {[%clk 0:02:51.9]}
8... Bd6 {[%clk 0:01:20.5]} 9. O-O {[%clk 0:02:52.2]} 9... O-O {[%clk
0:01:20.5]} 10. Re1 {[%clk 0:02:51.4]} 10... e5 {[%clk 0:01:19.9]} 11. dxe5
{[%clk 0:02:51.4]} 11... Ndxe5 {[%clk 0:01:19.8]} 12. Be2 {[%clk 0:02:44.8]}
12... Ng4 {[%clk 0:01:17.3]} 13. h3 {[%clk 0:02:40.6]} 13... Nxf2 {[%clk
0:01:08.3]} 14. Kxf2 {[%clk 0:02:39.7]} 14... Qh4+ {[%clk 0:01:08.1]} 15. Kg1
{[%clk 0:02:11.4]} 15... Qg3 {[%clk 0:01:01.2]} 16. Nf1 {[%clk 0:02:04.4]} 16...
Bc5+ {[%clk 0:00:48]} 17. Be3 {[%clk 0:01:45.3]} 17... Bxe3+ {[%clk 0:00:43.7]}
18. Nxe3 {[%clk 0:01:46.2]} 18... Bxh3 {[%clk 0:00:43.2]} 19. Qxd5+ {[%clk
0:01:02]} 19... Kh8 {[%clk 0:00:42]} 20. Qh5 {[%clk 0:00:57.2]} 20... Bg4 {[%clk
0:00:37]} 21. Qxg4 {[%clk 0:00:56]} 21... Qd6 {[%clk 0:00:28.3]} 22. Rad1 {[%clk
0:00:54.1]} 22... Qc5 {[%clk 0:00:28]} 23. Bd3 {[%clk 0:00:50.5]} 23... Rae8
{[%clk 0:00:26.7]} 24. Qh4 {[%clk 0:00:50.8]} 24... h6 {[%clk 0:00:19]} 25. Qf2
{[%clk 0:00:50.5]} 25... g5 {[%clk 0:00:17]} 26. Ng4 {[%clk 0:00:46.2]} 26...
Qd6 {[%clk 0:00:14.9]} 27. Be4 {[%clk 0:00:39]} 27... h5 {[%clk 0:00:14.5]} 28.
Rxd6 {[%clk 0:00:38.3]} 28... cxd6 {[%clk 0:00:13.9]} 29. Bxc6 {[%clk
0:00:36.6]} 29... bxc6 {[%clk 0:00:13.8]} 30. Rxe8 {[%clk 0:00:34.7]} 30... Rxe8
{[%clk 0:00:13.6]} 31. Nxg5 {[%clk 0:00:34.6]} 31... hxg4 {[%clk 0:00:11.4]} 32.
Qf6+ {[%clk 0:00:35.1]} 32... Kg8 {[%clk 0:00:10.5]} 33. Qf7+ {[%clk 0:00:36]}
33... Kh8 {[%clk 0:00:10.8]} 34. Qh7# {[%clk 0:00:36.9]} 1-0

[Event "Early-Titled-Tuesday-Blitz-March-12-2024"]
[Site "Chess.com"]
[Date "2024.03.12"]
[Round "5"]
[White "ilqar_74"]
[Black "santosalberto1987"]
[Result "1/2-1/2"]
[WhiteElo "2854"]
[BlackElo "2576"]
[TimeControl "180+1"]
[EndTime "8:54:48 PDT"]
[Termination "Game drawn by repetition"]

1. e4 {[%clk 0:03:00.9]} 1... e6 {[%clk 0:03:00.1]} 2. d4 {[%clk 0:02:59.3]}
2... d5 {[%clk 0:03:00.4]} 3. Nc3 {[%clk 0:02:58.2]} 3... Nf6 {[%clk 0:03:00.4]}
4. e5 {[%clk 0:02:54.7]} 4... Nfd7 {[%clk 0:03:00.5]} 5. f4 {[%clk 0:02:55.3]}
5... c5 {[%clk 0:03:00.9]} 6. Nf3 {[%clk 0:02:56]} 6... Nc6 {[%clk 0:03:01.3]}
7. Be3 {[%clk 0:02:55.3]} 7... Qb6 {[%clk 0:03:01.7]} 8. a3 {[%clk 0:02:54.2]}
8... c4 {[%clk 0:02:59.2]} 9. Rb1 {[%clk 0:02:51.4]} 9... Be7 {[%clk 0:02:56.9]}
10. Be2 {[%clk 0:02:50.8]} 10... f6 {[%clk 0:02:53.3]} 11. Qd2 {[%clk 0:02:49]}
11... fxe5 {[%clk 0:02:45.9]} 12. fxe5 {[%clk 0:02:48.4]} 12... O-O {[%clk
0:02:44.5]} 13. O-O {[%clk 0:02:46.3]} 13... Qd8 {[%clk 0:02:35.3]} 14. Ng5
{[%clk 0:02:37.3]} 14... Rxf1+ {[%clk 0:02:28.4]} 15. Rxf1 {[%clk 0:02:36.6]}
15... Nf8 {[%clk 0:02:28.6]} 16. Nb5 {[%clk 0:02:31]} 16... Qa5 {[%clk
0:01:51.5]} 17. Qxa5 {[%clk 0:02:04.8]} 17... Nxa5 {[%clk 0:01:52.4]} 18. Nc7
{[%clk 0:02:03.1]} 18... Rb8 {[%clk 0:01:51]} 19. Bg4 {[%clk 0:02:00]} 19...
Bxg5 {[%clk 0:01:45.5]} 20. Bxg5 {[%clk 0:02:00.9]} 20... Nc6 {[%clk 0:01:45.7]}
21. c3 {[%clk 0:01:48]} 21... Bd7 {[%clk 0:01:36.7]} 22. Rxf8+ {[%clk
0:00:33.4]} 22... Rxf8 {[%clk 0:01:36.1]} 23. Nxd5 {[%clk 0:00:34]} 23... h6
{[%clk 0:01:20.1]} 24. Be3 {[%clk 0:00:20.7]} 24... exd5 {[%clk 0:00:54.8]} 25.
Bxd7 {[%clk 0:00:20.5]} 25... Kf7 {[%clk 0:00:55]} 26. h4 {[%clk 0:00:17.7]}
26... Ke7 {[%clk 0:00:54.5]} 27. Bg4 {[%clk 0:00:18.3]} 27... Nd8 {[%clk
0:00:50.2]} 28. Bf3 {[%clk 0:00:18.5]} 28... Ke6 {[%clk 0:00:45.8]} 29. Bg4+
{[%clk 0:00:18.7]} 29... Ke7 {[%clk 0:00:45.8]} 30. Bf3 {[%clk 0:00:19.1]} 30...
Ke6 {[%clk 0:00:19.9]} 31. Bg4+ {[%clk 0:00:19]} 31... Ke7 {[%clk 0:00:19]}
1/2-1/2

[Event "Early-Titled-Tuesday-Blitz-March-12-2024"]
[Site "Chess.com"]
[Date "2024.03.12"]
[Round "5"]
[White "viktorskliarov"]
[Black "Sattarov_Bobur"]
[Result "1-0"]
[WhiteElo "2591"]
[BlackElo "2796"]
[TimeControl "180+1"]
[EndTime "8:54:52 PDT"]
[Termination "viktorskliarov won on time"]

1. e4 {[%clk 0:03:00.9]} 1... e5 {[%clk 0:02:55.3]} 2. Nc3 {[%clk 0:02:57.1]}
2... Nf6 {[%clk 0:02:52.8]} 3. Bc4 {[%clk 0:02:57.1]} 3... Bb4 {[%clk
0:02:50.7]} 4. Nge2 {[%clk 0:02:55.1]} 4... O-O {[%clk 0:02:48.4]} 5. a3 {[%clk
0:02:55.2]} 5... Ba5 {[%clk 0:02:47.8]} 6. b4 {[%clk 0:02:51.4]} 6... Bb6 {[%clk
0:02:46.9]} 7. Ng3 {[%clk 0:02:42.9]} 7... c6 {[%clk 0:02:43.8]} 8. O-O {[%clk
0:02:28.9]} 8... d5 {[%clk 0:02:42.2]} 9. Bb3 {[%clk 0:02:28.5]} 9... Ng4 {[%clk
0:02:36.6]} 10. h3 {[%clk 0:02:15.9]} 10... Qh4 {[%clk 0:02:05.1]} 11. Qf3
{[%clk 0:01:54.4]} 11... f5 {[%clk 0:01:20.5]} 12. exd5 {[%clk 0:01:17.5]} 12...
Nxf2 {[%clk 0:01:18.4]} 13. Rxf2 {[%clk 0:01:02.9]} 13... e4 {[%clk 0:01:17.2]}
14. Ncxe4 {[%clk 0:00:57.3]} 14... Bxf2+ {[%clk 0:01:07.2]} 15. Nxf2 {[%clk
0:00:55.2]} 15... Kh8 {[%clk 0:01:01.8]} 16. Bb2 {[%clk 0:00:54.4]} 16... Nd7
{[%clk 0:00:58.3]} 17. Nh5 {[%clk 0:00:53.2]} 17... Nf6 {[%clk 0:00:53.6]} 18.
Nxf6 {[%clk 0:00:50.8]} 18... gxf6 {[%clk 0:00:54.5]} 19. dxc6 {[%clk
0:00:39.5]} 19... bxc6 {[%clk 0:00:55.4]} 20. Re1 {[%clk 0:00:38.9]} 20... Ba6
{[%clk 0:00:48]} 21. Qxc6 {[%clk 0:00:32.6]} 21... f4 {[%clk 0:00:34.1]} 22.
Qxa6 {[%clk 0:00:30.5]} 22... f3 {[%clk 0:00:34.3]} 23. Qc4 {[%clk 0:00:25.9]}
23... Qg5 {[%clk 0:00:31.8]} 24. Qg4 {[%clk 0:00:25.6]} 24... Qxd2 {[%clk
0:00:31.6]} 25. Re7 {[%clk 0:00:23.3]} 25... Qh6 {[%clk 0:00:23.1]} 26. Qxf3
{[%clk 0:00:23.5]} 26... Rad8 {[%clk 0:00:21.7]} 27. Ng4 {[%clk 0:00:23.3]}
27... Qd2 {[%clk 0:00:14.7]} 28. Bxf6+ {[%clk 0:00:22.3]} 1-0

[Event "Early-Titled-Tuesday-Blitz-March-12-2024"]
[Site "Chess.com"]
[Date "2024.03.12"]
[Round "5"]
[White "BestStelker"]
[Black "Boorchess"]
[Result "1-0"]
[WhiteElo "2715"]
[BlackElo "2524"]
[TimeControl "180+1"]
[EndTime "8:54:54 PDT"]
[Termination "BestStelker won on time"]

1. Nf3 {[%clk 0:02:54.4]} 1... d5 {[%clk 0:02:57.1]} 2. c4 {[%clk 0:02:55.3]}
2... e6 {[%clk 0:02:56.2]} 3. d4 {[%clk 0:02:54.2]} 3... Nf6 {[%clk 0:02:53.9]}
4. Nc3 {[%clk 0:02:54.2]} 4... a6 {[%clk 0:02:47.4]} 5. cxd5 {[%clk 0:02:53.2]}
5... exd5 {[%clk 0:02:47.4]} 6. Bg5 {[%clk 0:02:54]} 6... Be6 {[%clk 0:02:45.5]}
7. Bxf6 {[%clk 0:02:54.1]} 7... Qxf6 {[%clk 0:02:44.3]} 8. Qb3 {[%clk
0:02:54.9]} 8... b6 {[%clk 0:02:18.1]} 9. e3 {[%clk 0:02:25.4]} 9... Qd8 {[%clk
0:02:05]} 10. h4 {[%clk 0:02:24.8]} 10... h6 {[%clk 0:02:02.7]} 11. g3 {[%clk
0:02:19]} 11... Nd7 {[%clk 0:01:50.9]} 12. Bh3 {[%clk 0:02:16.8]} 12... Bxh3
{[%clk 0:01:48.1]} 13. Rxh3 {[%clk 0:02:17.7]} 13... c6 {[%clk 0:01:46.8]} 14.
O-O-O {[%clk 0:02:10.1]} 14... Be7 {[%clk 0:01:38.1]} 15. g4 {[%clk 0:02:06.8]}
15... b5 {[%clk 0:01:33.9]} 16. Kb1 {[%clk 0:01:59.2]} 16... a5 {[%clk
0:01:30.6]} 17. Qc2 {[%clk 0:01:41.8]} 17... a4 {[%clk 0:01:05.3]} 18. Ne2
{[%clk 0:01:41.7]} 18... Rc8 {[%clk 0:00:55.3]} 19. Nf4 {[%clk 0:01:37.4]} 19...
Qb6 {[%clk 0:00:45.9]} 20. Nxd5 {[%clk 0:01:35.7]} 20... Qd8 {[%clk 0:00:42]}
21. Nxe7 {[%clk 0:01:29.5]} 21... Qxe7 {[%clk 0:00:42]} 22. d5 {[%clk
0:01:30.2]} 22... O-O {[%clk 0:00:39.6]} 23. d6 {[%clk 0:01:17.7]} 23... Qe6
{[%clk 0:00:36.5]} 24. Nd4 {[%clk 0:01:10]} 24... Qxd6 {[%clk 0:00:24.7]} 25. g5
{[%clk 0:01:06.1]} 25... h5 {[%clk 0:00:19.1]} 26. Nf5 {[%clk 0:00:53.5]} 26...
Qe6 {[%clk 0:00:18.7]} 27. Rd6 {[%clk 0:00:54.1]} 27... Qe8 {[%clk 0:00:18.9]}
28. g6 {[%clk 0:00:40.9]} 28... fxg6 {[%clk 0:00:16.2]} 29. Rxg6 {[%clk
0:00:41.8]} 29... Rxf5 {[%clk 0:00:03.2]} 30. Qxf5 {[%clk 0:00:40.7]} 30... Nf8
{[%clk 0:00:02.8]} 31. Rd6 {[%clk 0:00:29.3]} 31... Rc7 {[%clk 0:00:02.5]} 32.
Rf3 {[%clk 0:00:27.7]} 1-0

[Event "Early-Titled-Tuesday-Blitz-March-12-2024"]
[Site "Chess.com"]
[Date "2024.03.12"]
[Round "5"]
[White "kassablanca"]
[Black "TigrVShlyape"]
[Result "0-1"]
[WhiteElo "2774"]
[BlackElo "2918"]
[TimeControl "180+1"]
[EndTime "8:55:00 PDT"]
[Termination "TigrVShlyape won on time"]

1. d4 {[%clk 0:03:00.9]} 1... f5 {[%clk 0:02:54.3]} 2. Nf3 {[%clk 0:02:59.4]}
2... Nf6 {[%clk 0:02:54]} 3. g3 {[%clk 0:02:59.1]} 3... g6 {[%clk 0:02:53.8]} 4.
Bg2 {[%clk 0:02:59.4]} 4... Bg7 {[%clk 0:02:54.5]} 5. O-O {[%clk 0:02:59.8]}
5... O-O {[%clk 0:02:55.1]} 6. c4 {[%clk 0:03:00]} 6... d6 {[%clk 0:02:55.3]} 7.
Nc3 {[%clk 0:03:00.1]} 7... c6 {[%clk 0:02:55.6]} 8. Rb1 {[%clk 0:02:51]} 8...
a5 {[%clk 0:02:55.1]} 9. a3 {[%clk 0:02:39.5]} 9... Ne4 {[%clk 0:02:54.4]} 10.
Qc2 {[%clk 0:02:37.3]} 10... e5 {[%clk 0:02:52.8]} 11. dxe5 {[%clk 0:02:13.1]}
11... Nxc3 {[%clk 0:02:51.9]} 12. bxc3 {[%clk 0:01:48.2]} 12... dxe5 {[%clk
0:02:51.6]} 13. e4 {[%clk 0:01:37.8]} 13... f4 {[%clk 0:02:41.2]} 14. a4 {[%clk
0:01:21.3]} 14... Qe7 {[%clk 0:01:32.1]} 15. Rb3 {[%clk 0:01:01.5]} 15... Na6
{[%clk 0:01:06.3]} 16. Ba3 {[%clk 0:01:00.8]} 16... c5 {[%clk 0:01:02.9]} 17.
Rb5 {[%clk 0:00:52.1]} 17... Be6 {[%clk 0:00:52]} 18. Rfb1 {[%clk 0:00:46.2]}
18... Ra7 {[%clk 0:00:49.4]} 19. Nd2 {[%clk 0:00:38.9]} 19... Rc8 {[%clk
0:00:39]} 20. Rxa5 {[%clk 0:00:35]} 20... Bf8 {[%clk 0:00:27.7]} 21. Rab5 {[%clk
0:00:33.1]} 21... Qc7 {[%clk 0:00:26.2]} 22. Rb6 {[%clk 0:00:25.7]} 22... Re8
{[%clk 0:00:20.2]} 23. Qb3 {[%clk 0:00:21]} 23... Nb8 {[%clk 0:00:18.9]} 24.
Rxb7 {[%clk 0:00:19.9]} 24... Rxb7 {[%clk 0:00:17.7]} 25. Qxb7 {[%clk
0:00:20.8]} 25... Qd6 {[%clk 0:00:16.7]} 26. Rd1 {[%clk 0:00:11.5]} 26... Nd7
{[%clk 0:00:15.9]} 27. Bf3 {[%clk 0:00:10.6]} 27... Rb8 {[%clk 0:00:15.3]} 28.
Qa7 {[%clk 0:00:08.7]} 28... Qc6 {[%clk 0:00:15.6]} 29. Qa5 {[%clk 0:00:03]}
29... Be7 {[%clk 0:00:15.5]} 30. Nf1 {[%clk 0:00:02.4]} 30... Bd8 {[%clk
0:00:15.3]} 0-1

[Event "Early-Titled-Tuesday-Blitz-March-12-2024"]
[Site "Chess.com"]
[Date "2024.03.12"]
[Round "5"]
[White "Abund"]
[Black "eightbyeightchess"]
[Result "1-0"]
[WhiteElo "2787"]
[BlackElo "2400"]
[TimeControl "180+1"]
[EndTime "8:55:02 PDT"]
[Termination "Abund won on time"]

1. e4 {[%clk 0:03:00.9]} 1... e6 {[%clk 0:02:56.2]} 2. d4 {[%clk 0:03:00.4]}
2... d5 {[%clk 0:02:57.1]} 3. Nc3 {[%clk 0:03:01.1]} 3... Nf6 {[%clk 0:02:57.8]}
4. Bg5 {[%clk 0:03:00]} 4... Be7 {[%clk 0:02:58.2]} 5. e5 {[%clk 0:02:55.9]}
5... Nfd7 {[%clk 0:02:58.2]} 6. Bxe7 {[%clk 0:02:56.2]} 6... Qxe7 {[%clk
0:02:59]} 7. f4 {[%clk 0:02:56.6]} 7... a6 {[%clk 0:02:59.4]} 8. Nf3 {[%clk
0:02:56.2]} 8... c5 {[%clk 0:02:59.9]} 9. Be2 {[%clk 0:02:54]} 9... Nc6 {[%clk
0:03:00.2]} 10. Qd2 {[%clk 0:02:47.2]} 10... cxd4 {[%clk 0:03:00.2]} 11. Nxd4
{[%clk 0:02:47.3]} 11... Qc5 {[%clk 0:03:00.7]} 12. O-O-O {[%clk 0:02:43]} 12...
b5 {[%clk 0:02:58.7]} 13. Nxc6 {[%clk 0:02:31]} 13... Qxc6 {[%clk 0:02:58.5]}
14. Bd3 {[%clk 0:02:31.5]} 14... Bb7 {[%clk 0:02:58.1]} 15. Ne2 {[%clk 0:02:31]}
15... O-O-O {[%clk 0:02:55.6]} 16. Nd4 {[%clk 0:02:30.3]} 16... Qb6 {[%clk
0:02:55.7]} 17. Qe3 {[%clk 0:02:26.1]} 17... Kb8 {[%clk 0:02:39.8]} 18. Kb1
{[%clk 0:02:26.3]} 18... Rc8 {[%clk 0:02:39.9]} 19. Rhe1 {[%clk 0:02:23.9]}
19... Rc7 {[%clk 0:02:27.4]} 20. g4 {[%clk 0:02:23.2]} 20... g6 {[%clk
0:02:22.9]} 21. f5 {[%clk 0:02:14]} 21... Rhc8 {[%clk 0:02:13.2]} 22. h4 {[%clk
0:02:11]} 22... b4 {[%clk 0:01:02.8]} 23. h5 {[%clk 0:02:10.4]} 23... gxh5
{[%clk 0:00:58.3]} 24. fxe6 {[%clk 0:01:57.5]} 24... fxe6 {[%clk 0:00:57.9]} 25.
gxh5 {[%clk 0:01:57.8]} 25... a5 {[%clk 0:00:57]} 26. Bxh7 {[%clk 0:01:54.6]}
26... Rc4 {[%clk 0:00:38]} 27. Bg6 {[%clk 0:01:38.9]} 27... a4 {[%clk
0:00:33.8]} 28. Nf3 {[%clk 0:01:29.7]} 28... Qa5 {[%clk 0:00:27.6]} 29. Nd4
{[%clk 0:01:27.2]} 29... a3 {[%clk 0:00:12.4]} 30. b3 {[%clk 0:01:14.1]} 30...
Rc3 {[%clk 0:00:13.1]} 31. Qd2 {[%clk 0:01:11.6]} 31... Ka8 {[%clk 0:00:04.9]}
32. h6 {[%clk 0:01:11.9]} 32... Rh3 {[%clk 0:00:05.2]} 33. Rh1 {[%clk 0:01:10]}
33... Rxh1 {[%clk 0:00:01.6]} 34. Rxh1 {[%clk 0:01:10.9]} 34... Nxe5 {[%clk
0:00:02.5]} 35. Bd3 {[%clk 0:01:01.2]} 35... Qc5 {[%clk 0:00:02.2]} 36. Rh4
{[%clk 0:00:45.3]} 1-0